fUSD/lending_fUSD_20250609
["ID","MTS","AMOUNT","RATE_DAILY","PERIOD"]
[365100266,1749466245484,-480.0,0.00021917,2]
[365100267,1749466245495,-166.162868,0.00021917,2]
[365100268,1749466245504,-480.0,0.00021917,2]
[365100269,1749466245513,-340.04906073,0.00021917,2]
[365100270,1749466245522,-480.0,0.00021917,2]
[365100271,1749466245531,-480.0,0.00021917,2]
[365100272,1749466245541,-460.0,0.00021917,2]
[365100273,1749466245552,-480.0,0.00021917,2]
[365100274,1749466245562,-461.34584127,0.00021917,2]
[365100275,1749466245571,-480.0,0.00021917,2]
[365100276,1749466245581,-480.0,0.00021917,2]
[365100277,1749466245592,-480.0,0.00021917,2]
[365100278,1749466245601,-480.0,0.00021917,2]
[365100279,1749466245611,-480.0,0.00021917,2]
[365100280,1749466245620,-480.0,0.00021917,2]
[365100281,1749466245629,-480.0,0.00021917,2]
[365100282,1749466245639,-480.0,0.00021917,2]
[365100283,1749466245648,-480.0,0.00021917,2]
[365100284,1749466245657,-477.5866867,0.00021917,2]
[365100285,1749466245667,-480.0,0.00021917,2]
[365100286,1749466245676,-480.0,0.00021917,2]
[365100287,1749466245686,-460.0,0.00021917,2]
[365100288,1749466245696,-277.56003197,0.00021917,2]
[365100289,1749466245705,-480.0,0.00021917,2]
[365100290,1749466245715,-480.0,0.00021917,2]
[365100291,1749466245727,-480.0,0.00021917,2]
[365100292,1749466245738,-480.0,0.00021917,2]
[365100293,1749466245749,-460.0,0.00021917,2]
[365100294,1749466245759,-480.0,0.00021917,2]
[365100295,1749466245768,-480.0,0.00021917,2]
[365100296,1749466245777,-480.0,0.00021917,2]
[365100297,1749466245787,-480.0,0.00021917,2]
[365100298,1749466245796,-460.0,0.00021917,2]
[365100299,1749466245805,-480.0,0.00021917,2]
[365100300,1749466245815,-435.10981988,0.00021917,2]
[365100301,1749466245824,-480.0,0.00021917,2]
[365100302,1749466245833,-480.0,0.00021917,2]
[365100303,1749466245843,-480.0,0.00021917,2]
[365100304,1749466245852,-480.0,0.00021917,2]
[365100305,1749466245861,-271.97895104,0.00021917,2]
[365100306,1749466245870,-232.05111547,0.00021917,2]
[365100307,1749466245879,-480.0,0.00021917,2]
[365100308,1749466245888,-480.0,0.00021917,2]
[365100309,1749466245898,-460.0,0.00021917,2]
[365100310,1749466245907,-470.00636202,0.00021917,2]
[365100311,1749466245916,-460.0,0.00021917,2]
[365100312,1749466245926,-460.0,0.00021917,2]
[365100313,1749466245935,-416.18484337,0.00021917,2]
[365100314,1749466245944,-480.0,0.00021917,2]
[365100315,1749466245954,-460.0,0.00021917,2]
[365100317,1749466245963,-480.0,0.00021917,2]
[365100318,1749466245973,-500.0,0.00021917,2]
[365100319,1749466245982,-500.0,0.00021917,2]
[365100320,1749466245991,-500.0,0.00021917,2]
[365100321,1749466246002,-254.23657006,0.00021917,2]
[365100322,1749466246124,-929.92,0.00021917,2]
[365100323,1749466246134,-480.0,0.00021917,2]
[365100324,1749466246143,-480.0,0.00021917,2]
[365100325,1749466246152,-480.0,0.00021917,2]
[365100326,1749466246162,-492.5385327,0.00021917,2]
[365100327,1749466246171,-464.40293445,0.00021917,2]
[365100328,1749466246180,-464.11045886,0.00021917,2]
[365100329,1749466246190,-480.0,0.00021917,2]
[365100330,1749466246199,-480.0,0.00021917,2]
[365100331,1749466246208,-480.0,0.00021917,2]
[365100332,1749466246218,-164.80539299,0.00021917,2]
[365100333,1749466246227,-480.0,0.00021917,2]
[365100334,1749466246236,-480.0,0.00021917,2]
[365100335,1749466246245,-480.0,0.00021917,2]
[365100336,1749466246255,-534.91,0.00021917,2]
[365100337,1749466246264,-480.0,0.00021917,2]
[365100338,1749466246273,-480.0,0.00021917,2]
[365100339,1749466246283,-496.95976197,0.00021917,2]
[365100340,1749466246292,-460.0,0.00021917,2]
[365100341,1749466246301,-480.0,0.00021917,2]
[365100342,1749466246311,-1021.13,0.00021917,2]
[365100343,1749466246321,-480.0,0.00021917,2]
[365100344,1749466246331,-480.0,0.00021917,2]
[365100345,1749466246341,-480.0,0.00021917,2]
[365100346,1749466246350,-480.0,0.00021917,2]
[365100347,1749466246361,-721.83,0.00021917,2]
[365100348,1749466246370,-988.21,0.00021917,2]
[365100349,1749466246379,-480.0,0.00021917,2]
[365100350,1749466246389,-460.0,0.00021917,2]
[365100351,1749466246398,-1267.92,0.00021917,2]
[365100352,1749466246408,-480.0,0.00021917,2]
[365100353,1749466246417,-480.0,0.00021917,2]
[365100354,1749466246426,-460.0,0.00021917,2]
[365100355,1749466246435,-480.0,0.00021917,2]
[365100356,1749466246445,-480.0,0.00021917,2]
[365100357,1749466246454,-480.0,0.00021917,2]
[365100358,1749466246463,-480.0,0.00021917,2]
[365100359,1749466246475,-1301.38,0.00021917,2]
[365100360,1749466246485,-480.0,0.00021917,2]
[365100361,1749466246496,-1091.15,0.00021917,2]
[365100362,1749466246505,-480.0,0.00021917,2]
[365100363,1749466246515,-196.58091976,0.00021917,2]
[365100364,1749466246524,-468.56304687,0.00021917,2]
[365100365,1749466246533,-460.0,0.00021917,2]
[365100366,1749466246543,-460.0,0.00021917,2]
[365100367,1749466246556,-480.0,0.00021917,2]
[365100368,1749466246566,-480.0,0.00021917,2]
[365100369,1749466246576,-480.0,0.00021917,2]
[365100370,1749466246586,-480.0,0.00021917,2]
[365100371,1749466246598,-500.39332552,0.00021917,2]
[365100373,1749466246607,-480.0,0.00021917,2]
[365100375,1749466246616,-480.0,0.00021917,2]
[365100376,1749466246626,-460.0,0.00021917,2]
[365100378,1749466246638,-480.0,0.00021917,2]
[365100380,1749466246650,-460.0,0.00021917,2]
[365100382,1749466246660,-480.0,0.00021917,2]
[365100383,1749466246669,-480.0,0.00021917,2]
[365100384,1749466246679,-480.0,0.00021917,2]
[365100385,1749466246688,-480.0,0.00021917,2]
[365100386,1749466246697,-480.0,0.00021917,2]
[365100387,1749466246709,-500.0,0.00021917,2]
[365100388,1749466246718,-500.0,0.00021917,2]
[365100389,1749466246727,-500.0,0.00021917,2]
[365100390,1749466246737,-480.0,0.00021917,2]
[365100391,1749466246746,-593.78,0.00021917,2]
[365100392,1749466246755,-500.0,0.00021917,2]
[365100393,1749466246764,-500.0,0.00021917,2]
[365100394,1749466246773,-480.0,0.00021917,2]
[365100395,1749466246783,-500.0,0.00021917,2]
[365100396,1749466246792,-500.0,0.00021917,2]
[365100397,1749466246801,-500.0,0.00021917,2]
[365100398,1749466246810,-500.0,0.00021917,2]
[365100399,1749466246818,-500.0,0.00021917,2]
[365100400,1749466246827,-500.0,0.00021917,2]
[365100401,1749466246837,-500.0,0.00021917,2]
[365100402,1749466246846,-500.0,0.00021917,2]
[365100403,1749466246855,-500.0,0.00021917,2]
[365100404,1749466246864,-500.0,0.00021917,2]
[365100405,1749466246873,-500.0,0.00021917,2]
[365100406,1749466246883,-480.0,0.00021917,2]
[365100407,1749466246892,-500.0,0.00021917,2]
[365100408,1749466246901,-480.0,0.00021917,2]
[365100409,1749466246914,-500.0,0.00021917,2]
[365100410,1749466246933,-500.0,0.00021917,2]
[365100411,1749466246950,-278.69,0.00021917,2]
[365100412,1749466246970,-480.0,0.00021917,2]
[365100413,1749466246987,-480.0,0.00021917,2]
[365100414,1749466247003,-460.0,0.00021917,2]
[365100415,1749466247023,-480.0,0.00021917,2]
[365100416,1749466247043,-480.0,0.00021917,2]
[365100417,1749466247061,-2125.48,0.00021917,2]
[365100418,1749466247078,-460.0,0.00021917,2]
[365100419,1749466247097,-480.0,0.00021917,2]
[365100420,1749466247113,-480.0,0.00021917,2]
[365100421,1749466247127,-480.0,0.00021917,2]
[365100422,1749466247146,-480.0,0.00021917,2]
[365100423,1749466247159,-480.0,0.00021917,2]
[365100424,1749466247177,-664.01,0.00021917,2]
[365100425,1749466247190,-480.0,0.00021917,2]
[365100426,1749466247204,-516.39,0.00021917,2]
[365100427,1749466247219,-366.37351795,0.00021917,2]
[365100428,1749466247235,-427.3457674,0.00021917,2]
[365100429,1749466247249,-251.38657833,0.00021917,2]
[365100430,1749466247263,-480.0,0.00021917,2]
[365100431,1749466247278,-480.0,0.00021917,2]
[365100432,1749466247293,-460.0,0.00021917,2]
[365100433,1749466247308,-856.12,0.00021917,2]
[365100434,1749466247323,-480.0,0.00021917,2]
[365100435,1749466247341,-480.0,0.00021917,2]
[365100436,1749466247356,-480.0,0.00021917,2]
[365100437,1749466247371,-480.0,0.00021917,2]
[365100438,1749466247387,-480.0,0.00021917,2]
[365100439,1749466247402,-460.0,0.00021917,2]
[365100440,1749466247417,-480.0,0.00021917,2]
[365100441,1749466247432,-480.0,0.00021917,2]
[365100442,1749466247446,-460.0,0.00021917,2]
[365100443,1749466247461,-627.85,0.00021917,2]
[365100444,1749466247476,-480.0,0.00021917,2]
[365100445,1749466247491,-423.58140268,0.00021917,2]
[365100446,1749466247506,-524.15897064,0.00021917,2]
[365100447,1749466247521,-480.0,0.00021917,2]
[365100448,1749466247535,-480.0,0.00021917,2]
[365100449,1749466247552,-480.0,0.00021917,2]
[365100450,1749466247567,-460.0,0.00021917,2]
[365100451,1749466247582,-495.25761186,0.00021917,2]
[365100452,1749466247597,-480.0,0.00021917,2]
[365100453,1749466247611,-266.60332136,0.00021917,2]
[365100454,1749466247626,-465.01065716,0.00021917,2]
[365100455,1749466247641,-480.0,0.00021917,2]
[365100456,1749466247656,-480.0,0.00021917,2]
[365100457,1749466247670,-480.0,0.00021917,2]
[365100458,1749466247685,-480.0,0.00021917,2]
[365100459,1749466247700,-549.77052292,0.00021917,2]
[365100460,1749466247715,-691.28,0.00021917,2]
[365100461,1749466247730,-480.0,0.00021917,2]
[365100462,1749466247745,-462.09419835,0.00021917,2]
[365100463,1749466247759,-569.32,0.00021917,2]
[365100464,1749466247774,-480.0,0.00021917,2]
[365100465,1749466247788,-460.0,0.00021917,2]
[365100466,1749466247803,-460.0,0.00021917,2]
[365100467,1749466247818,-426.896198,0.00021917,2]
[365100468,1749466247836,-616.9,0.00021917,2]
[365100469,1749466247850,-706.24,0.00021917,2]
[365100470,1749466247865,-480.0,0.00021917,2]
[365100471,1749466247880,-460.0,0.00021917,2]
[365100472,1749466247895,-1104.53,0.00021917,2]
[365100473,1749466247910,-1104.53,0.00021917,2]
[365100474,1749466247925,-1104.53,0.00021917,2]
[365100475,1749466247940,-480.0,0.00021917,2]
[365100476,1749466247955,-1104.53,0.00021917,2]
[365100477,1749466247971,-1104.53,0.00021917,2]
[365100478,1749466247986,-1104.53,0.00021917,2]
[365100479,1749466248001,-1104.53,0.00021917,2]
[365100480,1749466248016,-1104.53,0.00021917,2]
[365100481,1749466248031,-1104.53,0.00021917,2]
[365100482,1749466248045,-1104.53,0.00021917,2]
[365100483,1749466248061,-1104.53,0.00021917,2]
[365100484,1749466248077,-1104.53,0.00021917,2]
[365100485,1749466248094,-462.76815433,0.00021917,2]
[365100486,1749466248110,-1104.53,0.00021917,2]
[365100487,1749466248282,-1104.53,0.00021917,2]
[365100488,1749466248291,-1104.53,0.00021917,2]
[365100489,1749466248301,-1104.53,0.00021917,2]
[365100490,1749466248310,-460.0,0.00021917,2]
[365100491,1749466248320,-1104.53,0.00021917,2]
[365100492,1749466248329,-1104.53,0.00021917,2]
[365100493,1749466248339,-1104.53,0.00021917,2]
[365100494,1749466248350,-480.0,0.00021917,2]
[365100495,1749466248359,-1467.86,0.00021917,2]
[365100496,1749466248369,-1104.53,0.00021917,2]
[365100497,1749466248378,-1104.53,0.00021917,2]
[365100498,1749466248387,-460.0,0.00021917,2]
[365100499,1749466248397,-1104.53,0.00021917,2]
[365100500,1749466248406,-1104.53,0.00021917,2]
[365100501,1749466248415,-1104.63788741,0.00021917,2]
[365100502,1749466248425,-480.0,0.00021917,2]
[365100503,1749466248435,-480.0,0.00021917,2]
[365100504,1749466248445,-480.0,0.00021917,2]
[365100505,1749466248454,-480.0,0.00021917,2]
[365100506,1749466248463,-430.09667656,0.00021917,2]
[365100507,1749466248473,-480.0,0.00021917,2]
[365100508,1749466248482,-483.70926052,0.00021917,2]
[365100509,1749466248491,-969.56,0.00021917,2]
[365100510,1749466248501,-480.0,0.00021917,2]
[365100511,1749466248510,-432.26654864,0.00021917,2]
[365100512,1749466248519,-852.82,0.00021917,2]
[365100513,1749466248529,-480.0,0.00021917,2]
[365100514,1749466248539,-480.0,0.00021917,2]
[365100515,1749466248550,-480.0,0.00021917,2]
[365100516,1749466248561,-480.0,0.00021917,2]
[365100517,1749466248570,-480.0,0.00021917,2]
[365100518,1749466248580,-465.37263967,0.00021917,2]
[365100519,1749466248590,-480.0,0.00021917,2]
[365100520,1749466248600,-480.0,0.00021917,2]
[365100521,1749466248609,-480.0,0.00021917,2]
[365100522,1749466248619,-480.0,0.00021917,2]
[365100523,1749466248628,-480.0,0.00021917,2]
[365100524,1749466248638,-1250.18,0.00021917,2]
[365100525,1749466248647,-460.0,0.00021917,2]
[365100526,1749466248656,-469.06373608,0.00021917,2]
[365100527,1749466248666,-480.0,0.00021917,2]
[365100528,1749466248675,-480.0,0.00021917,2]
[365100529,1749466248684,-460.0,0.00021917,2]
[365100530,1749466248694,-439.11232525,0.00021917,2]
[365100531,1749466248703,-461.48325552,0.00021917,2]
[365100532,1749466248712,-899.05,0.00021917,2]
[365100533,1749466248722,-480.0,0.00021917,2]
[365100534,1749466248731,-480.0,0.00021917,2]
[365100535,1749466248741,-480.0,0.00021917,2]
[365100536,1749466248750,-480.0,0.00021917,2]
[365100537,1749466248759,-554.6,0.00021917,2]
[365100538,1749466248769,-460.0,0.00021917,2]
[365100539,1749466248778,-466.79406754,0.00021917,2]
[365100540,1749466248788,-480.0,0.00021917,2]
[365100541,1749466248798,-460.0,0.00021917,2]
[365100542,1749466248808,-984.21,0.00021917,2]
[365100543,1749466248817,-860.12,0.00021917,2]
[365100544,1749466248827,-480.0,0.00021917,2]
[365100545,1749466248837,-360.0,0.00021917,2]
[365100546,1749466248847,-466.15722935,0.00021917,2]
[365100547,1749466248857,-505.23668659,0.00021917,2]
[365100548,1749466248867,-480.0,0.00021917,2]
[365100549,1749466248876,-480.0,0.00021917,2]
[365100550,1749466248886,-480.0,0.00021917,2]
[365100551,1749466248895,-480.0,0.00021917,2]
[365100552,1749466248904,-480.0,0.00021917,2]
[365100553,1749466248914,-483.54103888,0.00021917,2]
[365100554,1749466248923,-480.0,0.00021917,2]
[365100555,1749466248933,-480.0,0.00021917,2]
[365100556,1749466248942,-480.0,0.00021917,2]
[365100557,1749466248952,-549.32840579,0.00021917,2]
[365100558,1749466248962,-480.0,0.00021917,2]
[365100559,1749466248971,-1073.59,0.00021917,2]
[365100560,1749466248980,-186.3743516,0.00021917,2]
[365100561,1749466248990,-463.19132958,0.00021917,2]
[365100562,1749466249000,-680.21,0.00021917,2]
[365100563,1749466249009,-480.0,0.00021917,2]
[365100564,1749466249019,-232.39894074,0.00021917,2]
[365100565,1749466249028,-393.27875571,0.00021917,2]
[365100566,1749466249038,-480.0,0.00021917,2]
[365100567,1749466249047,-480.0,0.00021917,2]
[365100568,1749466249058,-480.0,0.00021917,2]
[365100569,1749466249067,-512.65588697,0.00021917,2]
[365100570,1749466249077,-480.0,0.00021917,2]
[365100571,1749466249088,-203.88587429,0.00021917,2]
[365100572,1749466249098,-1360.4,0.00021917,2]
[365100573,1749466249107,-480.0,0.00021917,2]
[365100574,1749466249116,-559.4226205,0.00021917,2]
[365100575,1749466249126,-480.0,0.00021917,2]
[365100576,1749466249136,-480.0,0.00021917,2]
[365100577,1749466249145,-480.0,0.00021917,2]
[365100578,1749466249155,-480.0,0.00021917,2]
[365100579,1749466249164,-494.84,0.00021917,2]
[365100580,1749466249174,-480.0,0.00021917,2]
[365100581,1749466249183,-480.0,0.00021917,2]
[365100582,1749466249193,-480.0,0.00021917,2]
[365100583,1749466249202,-480.0,0.00021917,2]
[365100584,1749466249211,-480.0,0.00021917,2]
[365100585,1749466249222,-480.0,0.00021917,2]
[365100586,1749466249232,-480.0,0.00021917,2]
[365100587,1749466249242,-420.0,0.00021917,2]
[365100588,1749466249253,-463.35448584,0.00021917,2]
[365100589,1749466249262,-460.0,0.00021917,2]
[365100590,1749466249271,-480.0,0.00021917,2]
[365100591,1749466249280,-460.0,0.00021917,2]
[365100592,1749466249289,-722.18,0.00021917,2]
[365100593,1749466249299,-480.0,0.00021917,2]
[365100594,1749466249309,-556.85,0.00021917,2]
[365100595,1749466249320,-480.0,0.00021917,2]
[365100596,1749466249329,-480.0,0.00021917,2]
[365100597,1749466249339,-460.0,0.00021917,2]
[365100598,1749466249349,-509.4296095,0.00021917,2]
[365100599,1749466249359,-480.0,0.00021917,2]
[365100600,1749466249368,-480.0,0.00021917,2]
[365100601,1749466249379,-480.0,0.00021917,2]
[365100602,1749466249388,-480.0,0.00021917,2]
[365100603,1749466249398,-460.0,0.00021917,2]
[365100604,1749466249407,-805.54,0.00021917,2]
[365100605,1749466249416,-610.12,0.00021917,2]
[365100606,1749466249426,-460.0,0.00021917,2]
[365100607,1749466249436,-480.0,0.00021917,2]
[365100608,1749466249445,-480.0,0.00021917,2]
[365100609,1749466249455,-480.0,0.00021917,2]
[365100610,1749466249464,-462.31849875,0.00021917,2]
[365100611,1749466249474,-707.31,0.00021917,2]
[365100612,1749466249484,-460.0,0.00021917,2]
[365100613,1749466249493,-934.38,0.00021917,2]
[365100614,1749466249503,-460.0,0.00021917,2]
[365100615,1749466249512,-480.0,0.00021917,2]
[365100616,1749466249522,-433.14693477,0.00021917,2]
[365100617,1749466249531,-380.0,0.00021917,2]
[365100618,1749466249541,-460.0,0.00021917,2]
[365100619,1749466249553,-480.0,0.00021917,2]
[365100620,1749466249563,-550.8,0.00021917,2]
[365100621,1749466249573,-947.54,0.00021917,2]
[365100622,1749466249582,-480.0,0.00021917,2]
[365100623,1749466249594,-1218.85,0.00021917,2]
[365100624,1749466249603,-587.78,0.00021917,2]
[365100625,1749466249612,-480.0,0.00021917,2]
[365100626,1749466249622,-480.0,0.00021917,2]
[365100627,1749466249632,-480.0,0.00021917,2]
[365100628,1749466249642,-480.0,0.00021917,2]
[365100629,1749466249652,-460.0,0.00021917,2]
[365100630,1749466249661,-480.0,0.00021917,2]
[365100631,1749466249670,-480.0,0.00021917,2]
[365100632,1749466249679,-586.54,0.00021917,2]
[365100633,1749466249688,-604.92,0.00021917,2]
[365100634,1749466249698,-480.0,0.00021917,2]
[365100635,1749466249707,-505.67,0.00021917,2]
[365100636,1749466249717,-252.3969905,0.00021917,2]
[365100637,1749466249726,-496.73,0.00021917,2]
[365100638,1749466249735,-460.0,0.00021917,2]
[365100639,1749466249744,-480.0,0.00021917,2]
[365100640,1749466249754,-1956.09,0.00021917,2]
[365100641,1749466249763,-480.0,0.00021917,2]
[365100642,1749466249773,-480.0,0.00021917,2]
[365100643,1749466249783,-480.0,0.00021917,2]
[365100644,1749466249792,-480.0,0.00021917,2]
[365100645,1749466249802,-480.0,0.00021917,2]
[365100646,1749466249812,-420.0,0.00021917,2]
[365100647,1749466249821,-460.0,0.00021917,2]
[365100648,1749466249830,-480.0,0.00021917,2]
[365100649,1749466249842,-618.85,0.00021917,2]
[365100650,1749466249851,-480.0,0.00021917,2]
[365100651,1749466249861,-480.0,0.00021917,2]
[365100652,1749466249870,-480.0,0.00021917,2]
[365100653,1749466249880,-490.09,0.00021917,2]
[365100654,1749466249889,-162.74630269,0.00021917,2]
[365100655,1749466249898,-480.0,0.00021917,2]
[365100656,1749466249907,-484.13160525,0.00021917,2]
[365100657,1749466249917,-480.0,0.00021917,2]
[365100658,1749466249926,-1096.76,0.00021917,2]
[365100659,1749466249936,-480.0,0.00021917,2]
[365100660,1749466249945,-750.02,0.00021917,2]
[365100661,1749466249954,-1441.64,0.00021917,2]
[365100662,1749466249963,-235.27814641,0.00021917,2]
[365100663,1749466249972,-480.0,0.00021917,2]
[365100664,1749466249982,-480.0,0.00021917,2]
[365100665,1749466249992,-480.0,0.00021917,2]
[365100666,1749466250001,-674.95,0.00021917,2]
[365100667,1749466250011,-480.0,0.00021917,2]
[365100668,1749466250020,-480.0,0.00021917,2]
[365100669,1749466250030,-480.0,0.00021917,2]
[365100670,1749466250039,-519.54,0.00021917,2]
[365100671,1749466250048,-480.0,0.00021917,2]
[365100672,1749466250058,-485.37424008,0.00021917,2]
[365100673,1749466250067,-460.0,0.00021917,2]
[365100674,1749466250077,-565.04,0.00021917,2]
[365100675,1749466250087,-480.0,0.00021917,2]
[365100676,1749466250210,-480.0,0.00021917,2]
[365100677,1749466250222,-480.0,0.00021917,2]
[365100678,1749466250231,-480.0,0.00021917,2]
[365100679,1749466250241,-572.04,0.00021917,2]
[365100680,1749466250250,-505.27,0.00021917,2]
[365100681,1749466250260,-1988.72,0.00021917,2]
[365100682,1749466250269,-480.0,0.00021917,2]
[365100683,1749466250278,-1686.83,0.00021917,2]
[365100684,1749466250287,-460.0,0.00021917,2]
[365100685,1749466250296,-480.0,0.00021917,2]
[365100686,1749466250305,-480.0,0.00021917,2]
[365100687,1749466250315,-480.0,0.00021917,2]
[365100688,1749466250324,-460.0,0.00021917,2]
[365100689,1749466250333,-420.0,0.00021917,2]
[365100690,1749466250342,-460.0,0.00021917,2]
[365100691,1749466250351,-480.0,0.00021917,2]
[365100692,1749466250360,-487.15055125,0.00021917,2]
[365100693,1749466250369,-1528.72,0.00021917,2]
[365100694,1749466250379,-513.03,0.00021917,2]
[365100695,1749466250387,-480.0,0.00021917,2]
[365100696,1749466250396,-460.0,0.00021917,2]
[365100697,1749466250406,-950.22,0.00021917,2]
[365100698,1749466250415,-480.0,0.00021917,2]
[365100699,1749466250427,-480.0,0.00021917,2]
[365100700,1749466250436,-480.0,0.00021917,2]
[365100701,1749466250446,-480.0,0.00021917,2]
[365100702,1749466250455,-464.6304952,0.00021917,2]
[365100703,1749466250464,-723.57,0.00021917,2]
[365100704,1749466250473,-1022.15,0.00021917,2]
[365100705,1749466250482,-480.0,0.00021917,2]
[365100706,1749466250491,-480.0,0.00021917,2]
[365100707,1749466250500,-511.33494051,0.00021917,2]
[365100708,1749466250509,-862.84,0.00021917,2]
[365100709,1749466250518,-300.0,0.00021917,2]
[365100710,1749466250527,-480.0,0.00021917,2]
[365100711,1749466250536,-480.0,0.00021917,2]
[365100712,1749466250546,-2098.83,0.00021917,2]
[365100713,1749466250559,-482.62,0.00021917,2]
[365100714,1749466250568,-460.0,0.00021917,2]
[365100715,1749466250577,-498.83710229,0.00021917,2]
[365100716,1749466250587,-462.92684027,0.00021917,2]
[365100717,1749466250596,-849.47,0.00021917,2]
[365100718,1749466250606,-480.0,0.00021917,2]
[365100719,1749466250615,-480.0,0.00021917,2]
[365100720,1749466250624,-380.0,0.00021917,2]
[365100721,1749466250633,-480.0,0.00021917,2]
[365100722,1749466250644,-460.0,0.00021917,2]
[365100723,1749466250654,-591.60771749,0.00021917,2]
[365100724,1749466250664,-460.0,0.00021917,2]
[365100725,1749466250673,-1205.43,0.00021917,2]
[365100726,1749466250683,-665.76,0.00021917,2]
[365100727,1749466250692,-460.0,0.00021917,2]
[365100728,1749466250702,-480.0,0.00021917,2]
[365100729,1749466250711,-460.0,0.00021917,2]
[365100730,1749466250719,-580.0,0.00021917,2]
[365100731,1749466250728,-500.0,0.00021917,2]
[365100732,1749466250738,-500.0,0.00021917,2]
[365100733,1749466250747,-877.8,0.00021917,2]
[365100734,1749466250758,-500.0,0.00021917,2]
[365100735,1749466250767,-515.22003817,0.00021917,2]
[365100736,1749466250777,-580.0,0.00021917,2]
[365100737,1749466250786,-539.36,0.00021917,2]
[365100738,1749466250795,-538.24283081,0.00021917,2]
[365100739,1749466250805,-480.0,0.00021917,2]
[365100740,1749466250814,-480.0,0.00021917,2]
[365100741,1749466250823,-628.38104799,0.00021917,2]
[365100742,1749466250832,-1239.04,0.00021917,2]
[365100743,1749466250842,-480.0,0.00021917,2]
[365100744,1749466250851,-480.0,0.00021917,2]
[365100745,1749466250860,-480.0,0.00021917,2]
[365100746,1749466250869,-1442.33,0.00021917,2]
[365100747,1749466250878,-480.0,0.00021917,2]
[365100748,1749466250887,-431.39427942,0.00021917,2]
[365100749,1749466250895,-761.03,0.00021917,2]
[365100750,1749466250904,-535.44,0.00021917,2]
[365100751,1749466250913,-480.0,0.00021917,2]
[365100752,1749466250923,-480.0,0.00021917,2]
[365100753,1749466250932,-480.0,0.00021917,2]
[365100754,1749466250941,-326.2503545,0.00021917,2]
[365100755,1749466250952,-480.0,0.00021917,2]
[365100756,1749466250961,-1581.99,0.00021917,2]
[365100757,1749466250971,-460.0,0.00021917,2]
[365100758,1749466250980,-480.0,0.00021917,2]
[365100759,1749466250989,-480.0,0.00021917,2]
[365100760,1749466250999,-460.0,0.00021917,2]
[365100761,1749466251008,-480.0,0.00021917,2]
[365100762,1749466251018,-480.0,0.00021917,2]
[365100763,1749466251027,-480.0,0.00021917,2]
[365100764,1749466251037,-460.0,0.00021917,2]
[365100765,1749466251046,-517.15,0.00021917,2]
[365100766,1749466251056,-480.0,0.00021917,2]
[365100767,1749466251066,-643.28,0.00021917,2]
[365100768,1749466251075,-480.0,0.00021917,2]
[365100769,1749466251085,-480.0,0.00021917,2]
[365100770,1749466251095,-480.0,0.00021917,2]
[365100771,1749466251105,-480.0,0.00021917,2]